Cogmind - Beta 14 @@@ ROGUE MODE // 2025.01.06 @ 20:52:19 Player: Lord Earthfire Result: Destroyed by G-47 Trooper with Particle Gun Performance ------------- Evolutions (2) 1000 Regions Visited (3) 600 Robots Destroyed (79) 395 Value Destroyed (2354) 2354 Prototype IDs (8) 160 Alien Tech Used (0) 0 Bonus (67) 67 TOTAL SCORE: 4576 Bonus ------- High Alert Combat Kills 67 Cogmind --------- Core Integrity 0/550 Matter 275/300 Energy 112/160 System Corruption 2% Temperature Danger (498) Movement Rolling (115) Ox1 Location -8/Materials Parts ------- > --- POWER (1) -------- Light Nuclear Core > --- PROPULSION (3) --- Compact Wheel Improved VTOL Module > --- UTILITY (5) ------ Large Storage Unit Weight Redist. System Improved Propulsion Shielding Insulated Plating Hacking Suite > --- WEAPON (2) ------- Precision Beam Rifle Precision Beam Rifle > --- INVENTORY (15) --- Deuterium Engine Improved Flight Unit Improved Heat Sink Weight Redist. System Advanced Targeting Computer Target Analyzer Particle Charger Heavy Particle Gun Precision Beam Rifle Precision Beam Rifle Precision Beam Rifle Heavy Particle Cannon Peak State ------------ > --- POWER ------------ Light Nuclear Core > --- PROPULSION ------- Cesium-ion Thruster Improved VTOL Module Improved VTOL Module > --- UTILITY ---------- Large Storage Unit Weight Redist. System Improved Signal Interpreter Insulated Plating Insulated Plating > --- WEAPON ----------- Precision Beam Rifle Precision Beam Rifle > --- INVENTORY -------- Deuterium Engine Improved Heat Sink Weight Redist. System Advanced Targeting Computer Target Analyzer Particle Charger Power Shielding Hacking Suite Hacking Suite Heavy Particle Gun Precision Beam Rifle Precision Beam Rifle Precision Beam Rifle Heavy Particle Cannon [Rating: 38] Favorites ----------- Power Reinforced Ion Engine Engine Reinforced Ion Engine Power Core Light Nuclear Core Propulsion Light Treads Treads Light Treads Leg VSS Leg Wheel Compact Wheel Hover Unit Improved Hover Unit Flight Unit Improved VTOL Module Utility Large Storage Unit Device Weight Redist. System Storage Large Storage Unit Processor Improved Signal Interpreter Hackware Hacking Suite Protection Insulated Plating Weapon Autogun Energy Gun Precision Beam Rifle Ballistic Gun Autogun Launcher Grenade Launcher Build | -11 -10 -9 -8 ------- Run | Yrd Mat Mat Mat Slots Evolved 4 | . . 2 2 Power . | . . . . Propulsion 1 | . . 1 . Utility 3 | . . 1 2 Weapon . | . . . . Parts Attached 84 | 7 9 19 49 Power 8 | 1 2 3 2 Engine 6 | 1 1 3 1 Core 2 | . 1 . 1 Reactor . | . . . . Propulsion 21 | 2 . 5 14 Treads 9 | . . 3 6 Leg 1 | . . . 1 Wheel 5 | 2 . 2 1 Hover 1 | . . . 1 Flight 5 | . . . 5 Utility 28 | 1 4 3 20 Device 10 | . 2 1 7 Storage 4 | 1 2 . 1 Processor 1 | . . . 1 Hackware 3 | . . 1 2 Protection 10 | . . 1 9 Artifact . | . . . . Weapon 27 | 3 3 8 13 Energy Gun 13 | . 2 5 6 Energy Cannon . | . . . . Ballistic Gun 10 | 3 . 2 5 Ballistic Cannon . | . . . . Launcher 4 | . 1 1 2 Special Weapon . | . . . . Impact Weapon . | . . . . Slashing Weapon . | . . . . Piercing Weapon . | . . . . Special Melee Weapon . | . . . . Unidentified Prototypes 5 | . 1 . 4 Parts Lost 27 | . 1 14 12 Power 2 | . 1 1 . Propulsion 11 | . . 6 5 Utility 7 | . . 1 6 Weapon 7 | . . 6 1 Highest Loss Streak 4 | . 1 4 3 To Critical Strikes . | . . . . Average Slot Usage (%) 83 | . 94 70 92 Engine 8 | . 7 10 6 Core 1 | . 3 . 2 Treads 6 | . . 5 8 Wheel 6 | . 28 5 1 Flight 4 | . . . 9 Device 11 | . 12 9 14 Storage 11 | . 14 11 10 Processor 1 | . . . 3 Hackware 7 | . . 10 6 Protection 4 | . . 1 9 Energy Gun 11 | . 25 7 10 Ballistic Gun 7 | . 1 8 7 Peak Build Rating 38 | 6 15 20 38 Average Rating 20 | 4 12 14 29 On Entrance 8 | . 6 12 17 Naked Turns . | . . . . Heaviest Build 58 | 12 27 38 58 Greatest Support 60 | 32 32 60 50 Greatest Overweight (x) 12 | . . 12 11 Average Overweight (x) 1 | . . 2 2 Largest Inventory Capacity 15 | 8 15 15 15 Average Capacity 14 | 6 9 15 15 Most Carried 15 | 5 10 15 15 Average Carried 12 | 2 8 12 13 Final Capacity 15 | 8 15 15 15 Final Carried 14 | 2 10 14 12 Class Distribution -------------------- 65% | Mutant 34% | Scavenger-Mutant Dominant Class ---------------- Mutant | -10/Materials Mutant | -9/Materials Scavenger-Mutant | -8/Materials Resources | -11 -10 -9 -8 ----------- Run | Yrd Mat Mat Mat Matter Collected 1394 | 226 124 248 796 Remotely . | . . . . Salvage Created 3026 | . 624 840 1562 Parts 169 | . 32 57 80 Haulers Intercepted 3 | . 2 . 1 Recyclers Shooed . | . . . . Parts Field Recycled . | . . . . Retrieved Matter . | . . . . Parts Self-Destructed . | . . . . Prevented . | . . . . Kills | -11 -10 -9 -8 ------- Run | Yrd Mat Mat Mat Combat Hostiles Destroyed 60 | . 12 19 29 Guns 52 | . 12 17 23 AOE 7 | . . 2 5 Classes Destroyed 13 | . 3 6 4 Worker 2 | . . . 2 Builder 1 | . . 1 . Tunneler 1 | . . 1 . Hauler 3 | . 2 . 1 Recycler 3 | . . . 3 Operator 3 | . 1 1 1 Watcher 6 | . . 3 3 Swarmer 12 | . . 4 8 Grunt 37 | . 12 12 13 Brawler 1 | . . 1 . Sentry 6 | . . 2 4 Specialist 2 | . . . 2 Hunter 2 | . . . 2 Best Kill Streak 5 | . 4 4 5 Combat Bots Only 4 | . 3 4 4 Max Kills in Single Turn 5 | . 1 2 5 Gunslinging 1 | . . . 1 Exploded 4 | . . 1 4 Melee . | . . . . Uniques/NPCs Destroyed . | . . . . Combat | -11 -10 -9 -8 -------- Run | Yrd Mat Mat Mat Hostile Shots Fired 379 | . 24 154 201 Missed 99 | . 8 40 51 Damage Taken 3978 | . 223 1457 2298 Core 874 | . 11 310 553 Absorbed by Shields 33 | . . . 33 Core Remaining (%) 72 | 100 95 22 . Volleys Fired 195 | . 37 68 90 Largest 2 | . 2 2 2 Hottest 122 | . 112 112 122 Shots Fired 364 | . 74 118 172 Gun 360 | . 74 116 170 Cannon . | . . . . Launcher 4 | . . 2 2 Special . | . . . . Kinetic 93 | . . 21 72 Thermal 201 | . 74 45 82 Explosive 4 | . . 2 2 Electromagnetic 66 | . . 50 16 Robot Hit Streak 27 | . 9 15 27 Robot Miss Streak 6 | . 6 5 3 Penetration Max 1 | . . . 1 Secondary Targets 8 | . 1 3 4 Max Gunslinging Chain 1 | . 1 1 1 Shots Hit Robots 247 | . 46 79 122 Core Hits 121 | . 17 40 64 Critical Kills 1 | . . . 1 Critical Parts Destroyed 1 | . . . 1 Critical Strikes 12 | . 4 1 7 Burn 10 | . 4 1 5 Destroy 2 | . . . 2 Melee Attacks . | . . . . Impact . | . . . . Slashing . | . . . . Piercing . | . . . . Sneak Attacks . | . . . . Combat Hostiles . | . . . . Follow-up Attacks . | . . . . Damage Inflicted 4783 | . 802 1280 2701 Guns 3991 | . 802 1007 2182 Cannons . | . . . . Explosions 792 | . . 273 519 Melee . | . . . . Ramming . | . . . . Kinetic 993 | . . 196 797 Thermal 2724 | . 802 589 1333 Explosive 401 | . . 127 274 Electromagnetic 665 | . . 368 297 Impact . | . . . . Slashing . | . . . . Piercing . | . . . . Highest Corruption 7 | . . 7 2 Average Corruption 3 | . . 6 1 Corruption Purged . | . . . . Corruption Blocked . | . . . . Effects 30 | . . 23 7 Message Errors 8 | . . 6 2 Matter Fused 7 | . . 6 1 Heat Flow Errors 3 | . . 3 . Data Loss (minor) 6 | . . 4 2 Data Loss (major) 4 | . . 3 1 Misfires 1 | . . 1 . Alerts 1 | . . . 1 Overload Shots . | . . . . Overflow Damage 45 | . . 15 30 Projectiles . | . . . . Explosions 45 | . . 15 30 Melee . | . . . . Knockbacks . | . . . . Impact . | . . . . Kinetic . | . . . . Secondary . | . . . . Self-Inflicted Damage 210 | . . 145 65 Shots 6 | . . 4 2 Rammed . | . . . . Targets Rammed . | . . . . Kicked . | . . . . Crushed . | . . . . Highest Temperature 751 | . 199 219 751 Average Temperature 119 | . 81 77 159 Received Heat Transfer 1398 | . 123 468 807 Effects 18 | . . . 18 Shutdowns 3 | . . . 3 Energy Bleed 3 | . . . 3 Interference 3 | . . . 3 Short Circuit 4 | . . . 4 Damage (major) 3 | . . . 3 Damage (core) 2 | . . . 2 Siege Activations . | . . . . Robots Corrupted . | . . . . Combat Hostiles . | . . . . Parts Fried 5 | . . 3 2 Impact Corruptions . | . . . . Robots Melted 2 | . 1 . 1 Combat Hostiles 1 | . . . 1 Parts Melted 15 | . 4 3 8 Heat Transferred 6259 | . 2035 1186 3038 Parts Sabotaged . | . . . . Parts Stolen . | . . . . Parts Stripped . | . . . . Power Chain Reactions 5 | . . 3 2 Alert | -11 -10 -9 -8 ------- Run | Yrd Mat Mat Mat Peak Influence 460 | . 380 401 460 Initial 76 | . . 76 59 Average 262 | . 178 264 294 Maximum Alert Level 2 | . 1 2 2 Low Security (%) 28 | 100 54 21 24 Level 1 62 | . 45 72 61 Level 2 8 | . . 6 14 Level 3 . | . . . . Level 4 . | . . . . Level 5 . | . . . . High Security . | . . . . Max Security . | . . . . Squads Dispatched 11 | . 2 3 6 Investigation 3 | . . 1 2 Extermination . | . . . . Reinforcement 8 | . 2 2 4 Assault . | . . . . Garrison . | . . . . Intercept . | . . . . Searches Triggered . | . . . . Construction Impeded . | . . . . Haulers Reinforced . | . . . . Active Scanning Responses . | . . . . Cargo Convoy Interrupts . | . . . . Stealth | -11 -10 -9 -8 --------- Run | Yrd Mat Mat Mat Distress Signals 7 | . 3 1 3 Communications Jammed . | . . . . Distress Signals . | . . . . Times Spotted 93 | . 19 31 43 Peak Tracking Total 6 | . 5 6 5 Tactical Retreats 4 | . 1 3 . Traps | -11 -10 -9 -8 ------- Run | Yrd Mat Mat Mat Traps Triggered 1 | . . 1 . Indirectly . | . . . . Trap Hack Attempts . | . . . . Triggered . | . . . . Disarmed . | . . . . Reprogrammed . | . . . . Reused . | . . . . Traps Extracted . | . . . . Installed . | . . . . Triggered . | . . . . Machines | -11 -10 -9 -8 ---------- Run | Yrd Mat Mat Mat Machines Disabled . | . . . . Max in Single Turn . | . . . . Machines Repaired . | . . . . Machines Dismantled . | . . . . Machines Sabotaged . | . . . . Overloaded Fab Kills . | . . . . Hacking | -11 -10 -9 -8 --------- Run | Yrd Mat Mat Mat Machines Accessed 11 | . 1 4 6 Terminals 7 | . 1 2 4 Fabricators . | . . . . Repair Stations . | . . . . Recycling Units 3 | . . 2 1 Scanalyzers 1 | . . . 1 Garrison Access . | . . . . Total Hacks 41 | . 3 15 23 Successful 28 | . 1 9 18 Failed 13 | . 2 6 5 Catastrophic 2 | . . 2 . Database Lockouts . | . . . . Manual . | . . . . Terminals 27 | . 3 9 15 Fabricators . | . . . . Repair Stations . | . . . . Recycling Units 9 | . . 6 3 Scanalyzers 5 | . . . 5 Garrison Access . | . . . . Terminal Hacks 19 | . 1 6 12 Record 4 | . . 4 . Prototype ID Bank 1 | . . . 1 Emergency Access Points 1 | . . . 1 Alert Level 5 | . . 1 4 Unreport Threat 3 | . . . 3 Locate Traps 1 | . . 1 . Hauler Manifests 1 | . . . 1 Zone Layout 3 | . 1 . 2 Fabricator Hacks . | . . . . Repair Station Hacks . | . . . . Recycling Unit Hacks 4 | . . 3 1 Process 1 | . . 1 . Report Inventory 3 | . . 2 1 Scanalyzer 5 | . . . 5 Insert Component 3 | . . . 3 Analyze 2 | . . . 2 Garrison Access Hacks . | . . . . Unauthorized Hacks . | . . . . Terminals . | . . . . Fabricators . | . . . . Repair Stations . | . . . . Recycling Units . | . . . . Scanalyzers . | . . . . Garrison Access . | . . . . Data Cores Recovered . | . . . . Used . | . . . . Hacking Detections 9 | . 1 3 5 Full Trace Events 6 | . 1 1 4 Feedback Events 2 | . . . 2 Corruption 2 | . . . 2 Feedback Blocked . | . . . . Robot Schematics Acquired . | . . . . Robots Built . | . . . . Authchips . | . . . . Time . | . . . . Total Robot Build Rating . | . . . . Part Schematics Acquired 2 | . . . 2 Parts Built . | . . . . Authchips . | . . . . Time . | . . . . Total Part Build Rating . | . . . . Parts Repaired . | . . . . Time . | . . . . Parts Recycled . | . . . . Recycled Matter 86 | . . 86 . Retrieved Matter . | . . . . Retrieved Components . | . . . . Parts Scanalyzed 2 | . . . 2 Part Schematics Acquired 2 | . . . 2 Parts Damaged . | . . . . Bothacking | -11 -10 -9 -8 ------------ Run | Yrd Mat Mat Mat Used RIF Installer . | . . . . Robots Hacked . | . . . . Non-combat . | . . . . Combat . | . . . . Robot Hacks Applied . | . . . . Relay Couplers Released . | . . . . Fabnet Peak Effective % . | . . . . Robots Rewired . | . . . . Allies Hacked . | . . . . Hacks Repelled . | . . . . Allies | -11 -10 -9 -8 -------- Run | Yrd Mat Mat Mat Total Allies . | . . . . Largest Group . | . . . . Highest-Rated Group . | . . . . Highest-Rated Ally . | . . . . Total Orders . | . . . . Ally Attacks . | . . . . Total Damage . | . . . . Kills . | . . . . Allies Corrupted . | . . . . Allies Melted . | . . . . Intel | -11 -10 -9 -8 ------- Run | Yrd Mat Mat Mat Robot Analysis Total . | . . . . Derelict Logs Recovered . | . . . . Drone Launches . | . . . . Drone Recoveries . | . . . . Exploration | -11 -10 -9 -8 ------------- Run | Yrd Mat Mat Mat Turns Passed 3345 | 58 422 1326 1539 Spaces Moved 1322 | 47 272 443 560 Core 257 | 7 . 112 138 Treads 347 | . . 116 231 Legs . | . . . . Wheels 703 | 40 272 215 176 Hover . | . . . . Flight 15 | . . . 15 Fastest Speed 50 | 50 100 100 115 Average Speed 192 | 92 100 247 202 Slowest Speed 650 | 100 100 650 600 Overloaded Moves . | . . . . Propulsion Burnouts . | . . . . Robots Hopped . | . . . . Cave-ins Triggered . | . . . . Exploration Rate (%) 33 | 4 47 35 49 Regions Visited 3 Branch Regions . Pre-discovered Areas . | . . . . Known Exits Taken . | . . . . Unknown Exits Taken 3 | 1 1 1 . Scrap Searched . | . . . . Spaces Dug . | . . . . Terrain Destroyed 49 | . . 21 28 Melee . | . . . . Projectile 1 | . . . 1 AOE 48 | . . 21 27 Terrain Rammed . | . . . . Walls Destroyed . | . . . . Machines Disabled . | . . . . Actions | -11 -10 -9 -8 --------- Run | Yrd Mat Mat Mat Total 1784 | 61 352 557 814 Wait 48 | . 6 3 39 Move 1319 | 46 271 442 560 Hop . | . . . . Pick Up 87 | 8 17 22 40 Fast Attach 2 | . . . 2 Attach 53 | 6 1 15 31 Detach 8 | . . . 8 Swap 29 | 1 8 4 16 Drop 43 | . 12 3 28 Fire 195 | . 37 68 90 Melee . | . . . . Ram . | . . . . Kick . | . . . . Crush . | . . . . Escape Stasis . | . . . . Rewire . | . . . . Trap . | . . . . Miscellaneous . | . . . . Route ------- -11/Scrapyard -10/Materials -9/Materials -8/Materials History --------- Turn | Location | Event 34 | -11/Scrapyard | Discovered new exit (range 15) 59 | -11/Scrapyard | Entered Materials 313 | -10/Materials | Build established: Mutant 375 | -10/Materials | Discovered new exit (range 11) 481 | -10/Materials | Entered another Materials area 481 | -9/Materials | Evolved 2 slots: Propulsion x1, Utility x1 829 | -9/Materials | Lost 3 parts (2n1w) 917 | -9/Materials | Core integrity fell below 50% 1143 | -9/Materials | Lost 4 parts (1p2n1w) 1524 | -9/Materials | Discovered new exit (range 3) 1807 | -9/Materials | Entered another Materials area 1807 | -8/Materials | Evolved 2 slots: Utility x2 1929 | -8/Materials | Lost 3 parts (2u1w) 2226 | -8/Materials | Build established: Scavenger-Mutant 2986 | -8/Materials | Build established: Mutant 3147 | -8/Materials | Core integrity fell below 50% 3158 | -8/Materials | Core integrity fell below 20% 3346 | -8/Materials | Destroyed by G-47 Trooper with Particle Gun Last Messages --------------- Current Alert Level: 1-M >>Alert(Purge) Purged threat record, alert level lowered. >>Alert(Check) Current Alert Level: Low Security >>Alert(Purge) Purged threat record, alert level lowered. >>Alert(Check) Current Alert Level: Low Security ALERT: Suspicious activity at Terminal M007. Dispatching Investigation squad. Acquired Imp. Flight Unit. G-47 Trooper suffers critical hit (Burn). Imp. Hover Unit destroyed. Aluminum Leg melted. G-47 Trooper destroyed. Switching to secondary target: G-47 Trooper. Hacking Suite destroyed. Insulated Plating destroyed. Overheating: Energy bleed (-37). Map ----- +----------------------------------------------------+ | | | | | | | | | | | | | | | | | | | | | | | | | | | | | | | | | | | ?????????????????????????????????????????????????? | | ?????????????????????????????????????????????????? | | ?????????????????????????????????????????????????? | | ?????????????????????????????????????????????????? | | ?????????????????????????????????????????????????? | | ?????????????????????????????########????????????? | | ?????????????????????????????# #????????????? | | ???????????????????##+######## #????????????? | | ???????????????????# @ + " #????????????? | | ?????????????####### #### # T #????????????? | | ?????????##### g #??# # " #????????????? | | ????????? gg #??# # #????????????? | | ????????? % g ####+####+###????????????? | | ?????????###### # [ T ## #??????????????? | | ????????? # # ## #??????????????? | | ????????? + + """ ## #??????????????? | | ????????? # # """ ]## #??????????????? | | ????????? "T" # # """ + #??????????????? | | ????????? # ##### # ####??????????????? | | ?????????###### #???# ###+####?????????????????? | | ??????????????# #???# #????????????????????? | | #########?????# #???# ##???????????????????? | | # ! #?????# #???# "" "#???????????????????? | | # #?????# #???# "T T#???????????????????? | | + !=#?????# #???# "" = "#???????????????????? | | # !#?????# #???# ##???????????????????? | | # #?????# #???# #????????????????????? | | #########?????# #???# #????????????????????? | | ! #?????????# #???# #????????????????????? | | #?????????#+##### #????????????????????? | | """ #?????????# ####### #????????????????????? | | """ #?????????# ## # #????????????????????? | | """ #?????????# ## # #????????????????????? | +----------------------------------------------------+ Best States ------------- Heat Dissipation 45 Coolant Potential 50 Energy Generation 14 Energy Capacity 415 Matter Stores 300 Matter Capacity 300 Sight Range 16 Terrain Scan Density 10 Additional Mass Support 6 Armor Coverage 300 Resistance: EM 15 Evasion (%) 40 Recoil Reduction 3 Offensive Hacking 20 Item Schematics ----------------- Imp. Medium Laser | -8/Materials | Scanalyzed Hacking Suite | -8/Materials | Scanalyzed Robot Schematics ------------------ None Fabricated ------------ Nothing Alien Tech Used ----------------- None Achievements -------------- Let's See Who's Tougher Challenges ------------ None Game ------ Seed CorruptionSpikedLaser Manual? 0 Play Time 00:38:27 Cumulative 3.5 hours Start 2025.01.06 @ 20:13:13 End 2025.01.06 @ 20:52:19 Sessions 1 Manual Loads 0 Difficulty Rogue Special Mode None Game No. 7 Rogue 7 Adventurer 0 Explorer 0 Win Type - Total 0 Types 0/0/0/0/0/0/0/0/0 Lore% 8 Gallery% 10 Achievement% 11 Wizard Run 0 Options --------- Layout 1 ASCII 0 Keyboard 0 Movement Mouse Keybinds 0 Fullscreen 1 Font 24/Smallcaps Map View 50x35 Zoom Use 0% Tactical HUD 0 Map Filters NONE Filters NONE Steam 1 RUN: a70c5e33-856b-4f80-b77c-26e3f5bbd2b9